fUSD/lending_fUSD_20240919
["ID","MTS","AMOUNT","RATE_DAILY","PERIOD"]
[338544471,1726727443196,-731.8,0.00012893,2]
[338544472,1726727443205,-500.0,0.00012893,2]
[338544473,1726727443214,-668.75,0.00012893,2]
[338544474,1726727443223,-500.0,0.00012893,2]
[338544475,1726727443233,-500.0,0.00012893,2]
[338544476,1726727443241,-500.0,0.00012893,2]
[338544477,1726727443250,-679.75,0.00012893,2]
[338544478,1726727443259,-1489.35,0.00012893,2]
[338544479,1726727443269,-258.16358107,0.00012893,2]
[338544480,1726727443287,-818.55641893,0.00012893,2]
[338544481,1726727443297,-500.0,0.00012893,2]
[338544482,1726727443306,-1519.88,0.00012893,2]
[338544483,1726727443317,-500.0,0.00012893,2]
[338544484,1726727443326,-500.0,0.00012893,2]
[338544485,1726727443335,-715.64,0.00012893,2]
[338544486,1726727443343,-500.0,0.00012893,2]
[338544487,1726727443353,-326.40972961,0.00012893,2]
[338544488,1726727443365,-173.59027039,0.00012893,2]
[338544489,1726727443374,-97.07919902,0.00012893,2]
[338544490,1726727443387,-413.83080098,0.00012893,2]
[338544491,1726727443396,-500.0,0.00012893,2]
[338544492,1726727443409,-500.0,0.00012893,2]
[338544493,1726727443419,-2610.72,0.00012893,2]
[338544494,1726727443429,-500.0,0.00012893,2]
[338544495,1726727443440,-500.0,0.00012893,2]
[338544496,1726727443450,-500.0,0.00012893,2]
[338544497,1726727443459,-500.0,0.00012893,2]
[338544498,1726727443468,-607.78,0.00012893,2]
[338544499,1726727443477,-500.0,0.00012893,2]
[338544500,1726727443486,-500.0,0.00012893,2]
[338544501,1726727443496,-500.0,0.00012893,2]
[338544502,1726727443505,-500.0,0.00012893,2]
[338544503,1726727443516,-500.0,0.00012893,2]
[338544504,1726727443526,-626.04,0.00012893,2]
[338544505,1726727443535,-500.0,0.00012893,2]
[338544506,1726727443544,-500.0,0.00012893,2]
[338544508,1726727443554,-500.0,0.00012893,2]
[338544510,1726727443564,-500.0,0.00012893,2]
[338544512,1726727443573,-500.0,0.00012893,2]
[338544513,1726727443582,-500.0,0.00012893,2]
[338544514,1726727443592,-500.0,0.00012893,2]
[338544515,1726727443601,-748.27,0.00012893,2]
[338544516,1726727443611,-500.0,0.00012893,2]
[338544517,1726727443622,-819.99,0.00012893,2]
[338544518,1726727443633,-1809.33,0.00012893,2]
[338544519,1726727443643,-1284.38,0.00012894,2]
[338544520,1726727443654,-815.54,0.00012894,2]
[338544521,1726727443665,-500.0,0.00012894,2]
[338544522,1726727443676,-632.14,0.00012894,2]
[338544523,1726727443685,-810.54,0.00012894,2]
[338544524,1726727443695,-500.0,0.00012894,2]
[338544525,1726727443704,-583.15,0.00012894,2]
[338544526,1726727443713,-500.0,0.00012894,2]
[338544527,1726727443723,-675.62,0.00012894,2]
[338544528,1726727443732,-500.0,0.00012894,2]
[338544529,1726727443741,-500.0,0.00012894,2]
[338544530,1726727443750,-609.8,0.00012894,2]
[338544531,1726727443759,-614.56,0.00012894,2]
[338544532,1726727443769,-500.0,0.00012894,2]
[338544533,1726727443779,-729.43,0.00012894,2]
[338544534,1726727443788,-169.41796182,0.000129,2]
[338544535,1726727443797,-184.50874676,0.000129,2]
[338544536,1726727443806,-167.69038639,0.000129,2]
[338544537,1726727443816,-2161.83992842,0.000129,2]
[338544538,1726727443827,-1669.57646434,0.000129,2]
[338544539,1726727443837,-158.56691586,0.00012922,2]
[338544540,1726727443846,-500.0,0.00012973,2]
[338544541,1726727443855,-500.0,0.00012973,2]
[338544542,1726727443865,-500.0,0.00012973,2]
[338544543,1726727443874,-260.76,0.00012993,2]
[338544544,1726727443883,-500.0,0.00012999,2]
[338544545,1726727443892,-500.0,0.00012999,2]
[338544546,1726727443901,-500.0,0.00012999,2]
[338544547,1726727443910,-251.46019879,0.00012999,2]
[338544548,1726727443919,-500.0,0.00012999,2]
[338544549,1726727443928,-500.0,0.00012999,2]
[338544550,1726727443938,-500.0,0.00012999,2]
[338544551,1726727443950,-500.0,0.00012999,2]
[338544552,1726727443960,-500.0,0.00012999,2]
[338544553,1726727443969,-500.0,0.00012999,2]
[338544554,1726727443979,-300.0,0.00012999,2]
[338544555,1726727443988,-150.9588351,0.00012999,2]
[338544556,1726727443997,-16137.79389695,0.00013,2]
[338544557,1726727444011,-1608.91586877,0.00013,2]
[338544558,1726727444024,-385.66261705,0.00013,2]
[338544559,1726727444036,-1641.30252,0.00013,2]
[338544560,1726727444047,-467.84357261,0.00013,2]
[338544561,1726727444058,-576.99,0.00013,2]
[338544562,1726727444070,-583.86285183,0.00013,2]
[338544563,1726727444201,-656.66,0.00013,2]
[338544564,1726727444217,-68351.30732487,0.00013,2]
[338544565,1726727444227,-1100.0,0.00013,2]
[338544566,1726727444239,-1600.0,0.00013,2]
[338544567,1726727444249,-1266369.06092244,0.00013,2]
[338544568,1726727444262,-99822.38001349,0.00013,2]
[338544569,1726727444274,-840421.75087007,0.00013,2]
[338544570,1726727444285,-187080.7967188,0.00013,2]
[338544571,1726727444297,-713.68932607,0.00013,2]
[338544572,1726727444310,-538867.72621972,0.00013,2]
[338544573,1726727444321,-137085.91014143,0.00013,2]
[338544574,1726727444333,-2409.35153101,0.00013,2]
[338544575,1726727444350,-1092.27862809,0.00013,2]
[338544576,1726727444363,-63394.02948113,0.00013,2]
[338544577,1726727444376,-923.08443828,0.00013,2]
[338544578,1726727444388,-1103.41846136,0.00013,2]
[338544579,1726727444400,-7180.06767896,0.00013,2]
[338544580,1726727445542,-18692.94126831,0.00013,2]
[338544581,1726727450503,250.0,0.00012499,2]
[338544582,1726727454492,197.06,0.0001245,2]
[338544583,1726727582050,2326.09,0.00012377,2]
[338544584,1726727589586,187.54,0.00012298,2]
[338544585,1726727662976,161.3,0.00012273,2]
[338544586,1726727705990,313.08,0.00010438,2]
[338544587,1726727706344,313.08,0.00012702,2]
[338544588,1726727738815,172.19,0.00012386,2]
[338544589,1726727748934,250.0,0.00012386,2]
[338544590,1726727810388,584.0,0.00012386,2]
[338544591,1726727890887,10742.72,0.00012268,2]
[338544592,1726727920251,1541.13,0.00012217,2]
[338544593,1726727948367,198.88,0.00012165,2]
[338544594,1726727951943,2605.77,0.00012187,2]
[338544595,1726727970177,23900.0,0.00012187,2]
[338544596,1726728018408,171.98,0.00012166,2]
[338544597,1726728025246,500.0,0.00012113,2]
[338544599,1726728224441,281.77,0.00010261,2]
[338544600,1726728224803,281.77,0.00012525,2]
[338544601,1726728278140,172.19,0.00012131,2]
[338544602,1726728300783,532.8,0.00012106,2]
[338544603,1726728302978,-827.0,0.00012771,2]
[338544604,1726728303000,-438.18338384,0.0001279,2]
[338544605,1726728303041,-14416.03264943,0.0001279,2]
[338544606,1726728303065,-421.86233158,0.00012798,2]
[338544607,1726728303089,-150.0,0.00012889,2]
[338544608,1726728303112,-500.0,0.0001289,2]
[338544609,1726728303136,-994.25,0.0001289,2]
[338544610,1726728303159,-906.42,0.0001289,2]
[338544611,1726728303181,-500.0,0.0001289,2]
[338544612,1726728303204,-652.0,0.0001289,2]
[338544613,1726728303226,-500.0,0.0001289,2]
[338544614,1726728303248,-500.0,0.0001289,2]
[338544615,1726728303270,-557.65,0.0001289,2]
[338544616,1726728303291,-500.0,0.0001289,2]
[338544617,1726728303313,-500.0,0.0001289,2]
[338544618,1726728303333,-500.0,0.0001289,2]
[338544619,1726728303353,-771.61,0.0001289,2]
[338544620,1726728303374,-733.84,0.0001289,2]
[338544621,1726728303395,-909.97,0.0001289,2]
[338544622,1726728303417,-500.0,0.0001289,2]
[338544623,1726728303438,-500.0,0.0001289,2]
[338544624,1726728303461,-500.0,0.0001289,2]
[338544625,1726728303482,-500.0,0.0001289,2]
[338544626,1726728303504,-500.0,0.0001289,2]
[338544627,1726728303525,-500.0,0.0001289,2]
[338544628,1726728303547,-500.0,0.0001289,2]
[338544629,1726728303568,-1309.36,0.0001289,2]
[338544630,1726728303590,-1091.31,0.0001289,2]
[338544631,1726728303612,-500.0,0.0001289,2]
[338544632,1726728303634,-500.0,0.0001289,2]
[338544633,1726728303720,-659.59,0.0001289,2]
[338544634,1726728303742,-500.0,0.0001289,2]
[338544635,1726728303764,-500.0,0.0001289,2]
[338544636,1726728303785,-500.0,0.0001289,2]
[338544637,1726728303807,-500.0,0.0001289,2]
[338544638,1726728303832,-500.0,0.0001289,2]
[338544639,1726728303855,-570.81,0.0001289,2]
[338544640,1726728303877,-500.0,0.0001289,2]
[338544641,1726728303900,-500.0,0.0001289,2]
[338544642,1726728303923,-500.0,0.0001289,2]
[338544643,1726728303944,-624.87,0.0001289,2]
[338544644,1726728303966,-500.0,0.0001289,2]
[338544645,1726728303988,-694.25,0.0001289,2]
[338544646,1726728304010,-805.24,0.0001289,2]
[338544647,1726728304032,-500.0,0.0001289,2]
[338544648,1726728304054,-500.0,0.0001289,2]
[338544649,1726728304076,-1428.52,0.0001289,2]
[338544650,1726728304098,-500.0,0.0001289,2]
[338544651,1726728304120,-500.0,0.0001289,2]
[338544652,1726728304141,-500.0,0.0001289,2]
[338544653,1726728304163,-500.0,0.0001289,2]
[338544654,1726728304186,-500.0,0.0001289,2]
[338544655,1726728304207,-500.0,0.0001289,2]
[338544656,1726728304229,-762.04,0.0001289,2]
[338544657,1726728304251,-500.0,0.0001289,2]
[338544658,1726728304274,-388.74750202,0.0001289,2]
[338544659,1726728304298,-500.0,0.0001289,2]
[338544660,1726728304323,-500.0,0.0001289,2]
[338544661,1726728304345,-1144.51,0.0001289,2]
[338544662,1726728304369,-500.0,0.0001289,2]
[338544663,1726728304392,-500.0,0.0001289,2]
[338544664,1726728304414,-500.0,0.0001289,2]
[338544665,1726728304436,-500.0,0.0001289,2]
[338544666,1726728304459,-509.4,0.0001289,2]
[338544667,1726728304481,-500.0,0.0001289,2]
[338544668,1726728304503,-1321.06,0.0001289,2]
[338544669,1726728304525,-500.0,0.0001289,2]
[338544670,1726728304547,-659.11,0.0001289,2]
[338544671,1726728304569,-500.0,0.0001289,2]
[338544672,1726728304592,-775.04,0.0001289,2]
[338544673,1726728304614,-500.0,0.0001289,2]
[338544674,1726728304636,-673.72,0.0001289,2]
[338544675,1726728304659,-500.0,0.0001289,2]
[338544676,1726728304682,-500.0,0.0001289,2]
[338544677,1726728304704,-500.0,0.0001289,2]
[338544678,1726728304726,-646.61,0.0001289,2]
[338544679,1726728304748,-500.0,0.0001289,2]
[338544680,1726728304770,-500.0,0.0001289,2]
[338544681,1726728304792,-500.0,0.0001289,2]
[338544682,1726728304816,-1513.22,0.0001289,2]
[338544683,1726728304840,-2069.12,0.0001289,2]
[338544684,1726728304862,-875.47,0.0001289,2]
[338544685,1726728304885,-1225.28,0.0001289,2]
[338544686,1726728304908,-2157.84,0.0001289,2]
[338544687,1726728304929,-994.97,0.0001289,2]
[338544688,1726728304950,-500.0,0.0001289,2]
[338544689,1726728304971,-182.30796378,0.0001289,2]
[338544690,1726728304991,-500.0,0.0001289,2]
[338544691,1726728305014,-500.0,0.0001289,2]
[338544692,1726728305035,-1042.11,0.0001289,2]
[338544693,1726728305056,-535.87,0.0001289,2]
[338544694,1726728305077,-744.05,0.0001289,2]
[338544695,1726728305098,-500.0,0.0001289,2]
[338544696,1726728305119,-500.0,0.0001289,2]
[338544697,1726728305140,-500.0,0.0001289,2]
[338544698,1726728305160,-500.0,0.0001289,2]
[338544699,1726728305181,-500.0,0.0001289,2]
[338544700,1726728305204,-510.1,0.0001289,2]
[338544701,1726728305228,-500.0,0.0001289,2]
[338544702,1726728305249,-477.29145946,0.0001289,2]
[338544703,1726728305270,-500.0,0.0001289,2]
[338544704,1726728305290,-500.0,0.0001289,2]
[338544705,1726728305312,-348.86888759,0.0001289,2]
[338544706,1726728305333,-500.0,0.0001289,2]
[338544707,1726728305354,-713.37,0.0001289,2]
[338544708,1726728305375,-572.95,0.0001289,2]
[338544709,1726728305396,-942.8,0.0001289,2]
[338544710,1726728305417,-500.0,0.0001289,2]
[338544711,1726728305439,-500.0,0.0001289,2]
[338544712,1726728305459,-500.0,0.0001289,2]
[338544713,1726728305481,-1255.68,0.0001289,2]
[338544714,1726728305503,-500.0,0.0001289,2]
[338544715,1726728305525,-1097.51,0.0001289,2]
[338544716,1726728305547,-668.18,0.0001289,2]
[338544717,1726728305568,-598.76,0.0001289,2]
[338544718,1726728305589,-500.0,0.0001289,2]
[338544719,1726728305611,-1829.05,0.0001289,2]
[338544720,1726728305633,-1018.26,0.0001289,2]
[338544721,1726728305654,-500.0,0.0001289,2]
[338544722,1726728305676,-567.79,0.0001289,2]
[338544723,1726728305704,-665.1,0.0001289,2]
[338544724,1726728305726,-2264.66,0.0001289,2]
[338544725,1726728305749,-722.03,0.0001289,2]
[338544726,1726728305770,-500.0,0.0001289,2]
[338544727,1726728305794,-500.0,0.0001289,2]
[338544728,1726728305817,-500.0,0.0001289,2]
[338544729,1726728305841,-1287.88,0.0001289,2]
[338544730,1726728305862,-941.88,0.0001289,2]
[338544731,1726728305885,-2307.42,0.0001289,2]
[338544732,1726728305908,-1339.12,0.0001289,2]
[338544733,1726728305930,-913.11,0.0001289,2]
[338544734,1726728305953,-1787.59,0.0001289,2]
[338544735,1726728305976,-500.0,0.0001289,2]
[338544736,1726728306001,-1370.35,0.0001289,2]
[338544737,1726728306023,-1898.26,0.0001289,2]
[338544738,1726728306046,-2028.8,0.0001289,2]
[338544739,1726728306069,-579.41,0.0001289,2]
[338544740,1726728306091,-500.0,0.0001289,2]
[338544741,1726728306112,-500.0,0.0001289,2]
[338544742,1726728306135,-500.0,0.0001289,2]
[338544743,1726728306156,-1733.11,0.0001289,2]
[338544744,1726728306178,-1359.24,0.0001289,2]
[338544745,1726728306201,-657.48,0.0001289,2]
[338544746,1726728306226,-2048.02,0.0001289,2]
[338544747,1726728306247,-1000.0,0.0001289,2]
[338544748,1726728306269,-500.0,0.0001289,2]
[338544749,1726728306292,-740.66,0.0001289,2]
[338544750,1726728306317,-1119.1,0.0001289,2]
[338544751,1726728306339,-500.0,0.0001289,2]
[338544752,1726728306365,-7314.47,0.0001289,2]
[338544753,1726728306386,-1976.6,0.0001289,2]
[338544754,1726728306407,-919.92,0.0001289,2]
[338544755,1726728306430,-1809.27,0.0001289,2]
[338544756,1726728306465,-2660.92,0.0001289,2]
[338544757,1726728306487,-500.0,0.0001289,2]
[338544758,1726728306511,-671.04,0.0001289,2]
[338544759,1726728306532,-500.0,0.0001289,2]
[338544760,1726728306554,-4785.96,0.0001289,2]
[338544761,1726728306576,-1470.06,0.0001289,2]
[338544762,1726728306597,-624.76,0.0001289,2]
[338544763,1726728306619,-694.91,0.0001289,2]
[338544764,1726728306640,-588.47,0.0001289,2]
[338544765,1726728306662,-500.0,0.0001289,2]
[338544766,1726728306683,-1022.66,0.0001289,2]
[338544767,1726728306705,-500.0,0.0001289,2]
[338544768,1726728306727,-1160.72,0.0001289,2]
[338544769,1726728306748,-3134.64,0.0001289,2]
[338544770,1726728306770,-758.04,0.0001289,2]
[338544771,1726728306791,-500.0,0.0001289,2]
[338544772,1726728306814,-1645.71,0.0001289,2]
[338544773,1726728306837,-1306.14,0.0001289,2]
[338544774,1726728306860,-1256.74,0.0001289,2]
[338544775,1726728306881,-994.75,0.0001289,2]
[338544776,1726728306904,-500.0,0.0001289,2]
[338544777,1726728306927,-500.0,0.0001289,2]
[338544778,1726728306959,-1016.27,0.0001289,2]
[338544779,1726728306985,-500.0,0.0001289,2]
[338544780,1726728307008,-500.0,0.0001289,2]
[338544781,1726728307030,-1722.24,0.0001289,2]
[338544782,1726728307052,-2096.08,0.0001289,2]
[338544783,1726728307074,-2675.36,0.0001289,2]
[338544784,1726728307096,-500.0,0.0001289,2]
[338544785,1726728307118,-777.66,0.0001289,2]
[338544786,1726728307139,-1168.86,0.0001289,2]
[338544787,1726728307162,-1273.81,0.0001289,2]
[338544788,1726728307184,-500.0,0.0001289,2]
[338544789,1726728307208,-809.13,0.0001289,2]
[338544790,1726728307230,-1064.25,0.0001289,2]
[338544791,1726728307253,-1079.72,0.0001289,2]
[338544792,1726728307274,-500.0,0.0001289,2]
[338544793,1726728307296,-500.0,0.0001289,2]
[338544794,1726728307318,-899.53,0.0001289,2]
[338544795,1726728307339,-563.93,0.0001289,2]
[338544796,1726728307360,-1593.29,0.0001289,2]
[338544797,1726728307380,-500.0,0.0001289,2]
[338544798,1726728307402,-565.19,0.0001289,2]
[338544799,1726728307424,-1369.63,0.0001289,2]
[338544800,1726728307448,-500.0,0.0001289,2]
[338544801,1726728307482,-500.0,0.0001289,2]
[338544802,1726728307506,-1850.09,0.0001289,2]
[338544803,1726728307530,-500.0,0.0001289,2]
[338544804,1726728307554,-500.0,0.0001289,2]
[338544805,1726728307578,-500.0,0.0001289,2]
[338544806,1726728307601,-500.0,0.0001289,2]
[338544807,1726728307624,-1916.84,0.0001289,2]
[338544808,1726728307647,-2259.87,0.0001289,2]
[338544809,1726728307668,-500.0,0.0001289,2]
[338544810,1726728307690,-1154.31,0.0001289,2]
[338544811,1726728307712,-2331.17,0.0001289,2]
[338544812,1726728307735,-500.0,0.0001289,2]
[338544813,1726728307757,-985.93,0.0001289,2]
[338544814,1726728307778,-500.0,0.0001289,2]
[338544815,1726728307799,-1185.09,0.0001289,2]
[338544816,1726728307822,-500.0,0.0001289,2]
[338544817,1726728307968,-1309.78,0.0001289,2]
[338544818,1726728308005,-727.62,0.0001289,2]
[338544819,1726728308026,-719.08,0.0001289,2]
[338544820,1726728308048,-876.8,0.0001289,2]
[338544821,1726728308069,-681.24,0.0001289,2]
[338544822,1726728308090,-500.0,0.0001289,2]
[338544823,1726728308112,-1216.2,0.0001289,2]
[338544824,1726728308134,-565.58,0.0001289,2]
[338544825,1726728308156,-500.0,0.0001289,2]
[338544826,1726728308178,-782.8,0.0001289,2]
[338544827,1726728308200,-1664.8,0.0001289,2]
[338544828,1726728308221,-1751.57,0.0001289,2]
[338544829,1726728308243,-500.0,0.0001289,2]
[338544830,1726728308267,-500.0,0.0001289,2]
[338544831,1726728308289,-500.0,0.0001289,2]
[338544832,1726728308311,-1916.86,0.0001289,2]
[338544833,1726728308333,-3411.95,0.0001289,2]
[338544834,1726728308356,-1282.27,0.0001289,2]
[338544835,1726728308378,-1166.51,0.0001289,2]
[338544836,1726728308400,-3750.32,0.0001289,2]
[338544837,1726728308423,-500.0,0.0001289,2]
[338544838,1726728308448,-904.68,0.0001289,2]
[338544839,1726728308476,-6087.87,0.0001289,2]
[338544840,1726728308499,-1238.24,0.0001289,2]
[338544841,1726728308522,-660.75,0.0001289,2]
[338544842,1726728308544,-500.0,0.0001289,2]
[338544843,1726728308567,-1417.5,0.0001289,2]
[338544844,1726728308589,-3785.92,0.0001289,2]
[338544845,1726728308612,-561.25,0.0001289,2]
[338544846,1726728308634,-1022.01,0.0001289,2]
[338544847,1726728308656,-500.0,0.0001289,2]
[338544848,1726728308678,-500.0,0.0001289,2]
[338544849,1726728308711,-500.0,0.0001289,2]
[338544850,1726728308734,-1263.4,0.0001289,2]
[338544851,1726728308756,-2553.78,0.0001289,2]
[338544852,1726728308779,-500.0,0.0001289,2]
[338544853,1726728308800,-500.0,0.0001289,2]
[338544854,1726728308823,-500.0,0.0001289,2]
[338544855,1726728308846,-1250.03,0.0001289,2]
[338544856,1726728308868,-500.0,0.0001289,2]
[338544857,1726728308891,-500.0,0.0001289,2]
[338544858,1726728308914,-500.0,0.0001289,2]
[338544859,1726728308936,-11445.17,0.0001289,2]
[338544860,1726728308969,-500.0,0.0001289,2]
[338544861,1726728308991,-1086.04,0.0001289,2]
[338544862,1726728309014,-500.0,0.0001289,2]
[338544863,1726728309036,-369.48,0.0001289,2]
[338544864,1726728309060,-500.0,0.0001289,2]
[338544865,1726728309081,-500.0,0.0001289,2]
[338544866,1726728309103,-2739.61,0.0001289,2]
[338544867,1726728309125,-500.0,0.0001289,2]
[338544868,1726728309148,-539.98,0.0001289,2]
[338544869,1726728309172,-500.0,0.0001289,2]
[338544870,1726728309194,-500.0,0.0001289,2]
[338544871,1726728309218,-843.07,0.0001289,2]
[338544872,1726728309244,-1110.62,0.0001289,2]
[338544873,1726728309268,-500.0,0.0001289,2]
[338544874,1726728309292,-500.0,0.0001289,2]
[338544875,1726728309315,-25308.28,0.0001289,2]
[338544876,1726728309338,-987.82,0.0001289,2]
[338544877,1726728309360,-500.0,0.0001289,2]
[338544878,1726728309383,-605.0,0.0001289,2]
[338544879,1726728309406,-955.47,0.0001289,2]
[338544880,1726728309429,-4075.29,0.0001289,2]
[338544881,1726728309455,-2427.55,0.0001289,2]
[338544882,1726728309481,-4422.84,0.0001289,2]
[338544883,1726728309504,-1023.84,0.0001289,2]
[338544884,1726728309527,-3197.05,0.0001289,2]
[338544885,1726728309551,-500.0,0.0001289,2]
[338544886,1726728309574,-1265.95,0.0001289,2]
[338544887,1726728309596,-500.0,0.0001289,2]
[338544888,1726728309618,-1654.12,0.0001289,2]
[338544889,1726728309641,-1321.28,0.0001289,2]
[338544890,1726728309663,-500.0,0.0001289,2]
[338544891,1726728309685,-500.0,0.0001289,2]
[338544892,1726728309707,-792.17,0.0001289,2]
[338544893,1726728309729,-3748.5,0.0001289,2]
[338544894,1726728309752,-793.22,0.0001289,2]
[338544895,1726728309776,-2448.02,0.0001289,2]
[338544896,1726728309799,-500.0,0.0001289,2]
[338544897,1726728309823,-2427.01,0.0001289,2]
[338544898,1726728309847,-1339.45,0.0001289,2]
[338544899,1726728309869,-500.0,0.0001289,2]
[338544900,1726728309892,-500.0,0.0001289,2]
[338544901,1726728309916,-500.0,0.0001289,2]
[338544902,1726728309941,-1520.19,0.0001289,2]
[338544903,1726728309974,-838.97,0.0001289,2]
[338544904,1726728309996,-500.0,0.0001289,2]
[338544905,1726728310019,-1724.84,0.0001289,2]
[338544906,1726728310042,-6069.8,0.0001289,2]
[338544907,1726728310065,-500.0,0.0001289,2]
[338544908,1726728310087,-500.0,0.0001289,2]
[338544909,1726728310109,-500.0,0.0001289,2]
[338544910,1726728310131,-810.46,0.0001289,2]
[338544911,1726728310155,-608.68,0.0001289,2]
[338544912,1726728310178,-3263.4,0.0001289,2]
[338544913,1726728310210,-500.0,0.0001289,2]
[338544914,1726728310234,-500.0,0.0001289,2]
[338544915,1726728310259,-218.78517997,0.0001289,2]
[338544916,1726728310283,-767.09,0.0001289,2]
[338544917,1726728310306,-500.0,0.00012891,2]
[338544918,1726728310331,-258.39464055,0.00012891,2]
[338544919,1726728310355,-1363.96,0.00012891,2]
[338544920,1726728310379,-737.44,0.00012891,2]
[338544921,1726728310402,-862.99,0.00012891,2]
[338544922,1726728310426,-993.67,0.00012891,2]
[338544923,1726728310459,-1658.31,0.00012891,2]
[338544924,1726728310482,-1784.77,0.00012891,2]
[338544925,1726728310506,-575.6,0.00012891,2]
[338544926,1726728310530,-1162.64,0.00012891,2]
[338544927,1726728310553,-569.04,0.00012891,2]
[338544928,1726728310576,-917.78,0.00012891,2]
[338544929,1726728310907,-500.0,0.00012891,2]
[338544930,1726728310928,-1214.07,0.00012891,2]
[338544931,1726728310961,-769.39,0.00012891,2]
[338544932,1726728310984,-727.84,0.00012891,2]
[338544933,1726728311006,-728.77,0.00012891,2]
[338544934,1726728311028,-3605.61,0.00012891,2]
[338544935,1726728311050,-500.0,0.00012891,2]
[338544936,1726728311072,-519.52,0.00012891,2]
[338544937,1726728311093,-500.0,0.00012891,2]
[338544938,1726728311114,-1493.35,0.00012891,2]
[338544939,1726728311137,-991.18,0.00012891,2]
[338544940,1726728311159,-832.65,0.00012891,2]
[338544941,1726728311181,-500.0,0.00012891,2]
[338544942,1726728311205,-749.33,0.00012891,2]
[338544943,1726728311231,-500.0,0.00012891,2]
[338544944,1726728311253,-510.82,0.00012891,2]
[338544945,1726728311274,-500.0,0.00012891,2]
[338544946,1726728311296,-500.0,0.00012891,2]
[338544947,1726728311318,-528.46,0.00012891,2]
[338544948,1726728311341,-500.0,0.00012891,2]
[338544949,1726728311363,-553.90212029,0.00012891,2]
[338544950,1726728311385,-500.0,0.00012891,2]
[338544951,1726728311406,-666.43,0.00012891,2]
[338544952,1726728311428,-1073.89,0.00012891,2]
[338544953,1726728311452,-651.75,0.00012891,2]
[338544954,1726728311477,-652.45,0.00012891,2]
[338544955,1726728311499,-787.06,0.00012891,2]
[338544956,1726728311521,-791.34,0.00012891,2]
[338544957,1726728311543,-500.0,0.00012891,2]
[338544958,1726728311567,-500.0,0.00012891,2]
[338544959,1726728311593,-463.81299404,0.00012891,2]
[338544960,1726728311616,-709.25,0.00012891,2]
[338544961,1726728311639,-889.51,0.00012891,2]
[338544962,1726728311663,-1488.34,0.00012891,2]
[338544963,1726728311684,-1464.9,0.00012891,2]
[338544964,1726728311720,-1423.5,0.00012891,2]
[338544965,1726728311743,-669.18,0.00012891,2]
[338544966,1726728311765,-1657.68,0.00012891,2]
[338544967,1726728311787,-500.0,0.00012891,2]
[338544968,1726728311812,-1430.14,0.00012891,2]
[338544969,1726728311835,-781.26,0.00012891,2]
[338544970,1726728311859,-2815.55,0.00012891,2]
[338544971,1726728311881,-1492.43,0.00012891,2]
[338544972,1726728311906,-500.0,0.00012892,2]
[338544973,1726728311929,-258.57601981,0.00012892,2]
[338544974,1726728311959,-500.0,0.00012892,2]